bitfinex/quotes_SOLUSD_20220109
["timestamp","ask_amount","ask_price","bid_price","bid_amount"]
[1641701906231,10.12,142.56,142.44,3.75892623]
[1641701906431,16.40985025,142.56,142.44,3.75892623]
[1641701906630,1.26585025,142.55,142.44,35.32206867]
[1641701906831,25.45665025,142.55,142.44,35.32206867]
[1641701907032,25.45665025,142.55,142.44,31.56314244]
[1641701907433,10.5361,142.5,142.45,24.8449]
[1641701907839,24.1908,142.55,142.45,24.8449]
[1641701908034,3.0,142.54,142.45,24.8449]
[1641701908437,10.5316,142.51,142.45,24.8449]
[1641701909838,10.5305,142.52,142.45,24.8449]
[1641701910837,23.7247,142.53,142.45,24.8449]
[1641701911342,1.26585025,142.57,142.45,24.8449]
[1641701911538,23.6835,142.57,142.45,24.8449]
[1641701911964,23.6835,142.57,142.45,51.5499]
[1641701912664,3.0,142.56,142.45,51.5499]
[1641701913868,3.0,142.56,142.47,29.57064066]
[1641701914068,3.0,142.56,142.47,40.09784066]
[1641701914268,3.0,142.56,142.47,29.57064066]
[1641701914469,3.0,142.56,142.46,73.2185]
[1641701915072,13.5277,142.56,142.46,73.2185]
[1641701915268,13.5277,142.56,142.47,23.6195]
[1641701916571,14.79355025,142.56,142.47,23.6195]
[1641701918872,13.5277,142.56,142.47,23.6195]
[1641701919472,13.5277,142.56,142.47,49.88620703]
[1641701920073,13.5277,142.56,142.47,23.6195]
[1641701922575,14.79355025,142.56,142.46,73.2185]
[1641701922974,24.91355025,142.56,142.43,10.12]
[1641701923175,23.1607,142.55,142.43,10.12]
[1641701923374,10.5322,142.5,142.43,10.12]
[1641701927680,10.5312,142.51,142.43,39.00249817]
[1641701927881,23.3729,142.53,142.43,62.38519817]
[1641701928280,10.12,142.56,142.44,3.0]
[1641701928680,10.5303,142.53,142.43,72.91549817]
[1641701928882,23.8787,142.55,142.43,72.91549817]
[1641701929282,23.8787,142.55,142.43,74.89735963]
[1641701929583,10.5319,142.5,142.43,64.36705963]
[1641701931391,10.5312,142.51,142.43,64.36705963]
[1641701932485,10.5312,142.51,142.43,63.86705963]
[1641701932985,10.5312,142.51,142.44,2.24186146]
[1641701933184,23.8787,142.55,142.44,2.49186146]
[1641701933384,25.38732489,142.58,142.44,12.61186146]
[1641701933586,25.38732489,142.58,142.46,27.26514961]
[1641701933889,25.38732489,142.58,142.47,0.51]
[1641701934087,35.91332489,142.58,142.5,10.5255]
[1641701934288,35.91332489,142.58,142.5,47.13546449]
[1641701934688,34.1134,142.58,142.5,47.13546449]
[1641701936587,34.1134,142.58,142.5,5.092]
[1641701936792,34.1134,142.58,142.49,22.7655]
[1641701936987,35.37925025,142.58,142.49,22.7655]
[1641701937188,35.37925025,142.58,142.48,72.4446]
[1641701937689,10.5303,142.53,142.48,72.4446]
[1641701937890,10.5303,142.53,142.47,29.52684939]
[1641701938716,10.5303,142.53,142.44,12.10186146]
[1641701938918,10.5303,142.53,142.45,3.0]
[1641701939115,10.5303,142.53,142.45,13.12]
[1641701939916,34.2419,142.55,142.46,23.434157]
[1641701940116,34.2419,142.55,142.46,46.109057]
[1641701942818,34.2419,142.55,142.46,56.637457]
[1641701943719,34.2419,142.55,142.46,46.109057]
[1641701944521,34.2419,142.55,142.47,3.0]
[1641701946625,34.2419,142.55,142.46,22.6749]
[1641701948123,35.50775025,142.55,142.43,84.98586146]
[1641701948324,35.50775025,142.55,142.45,3.0]
[1641701948522,10.5309,142.52,142.45,3.0]
[1641701948924,3.0,142.54,142.45,13.5293]
[1641701949128,57.96640558,142.54,142.45,13.5293]
[1641701949526,3.0,142.54,142.45,13.5293]
[1641701953531,13.5288,142.54,142.45,13.5293]
[1641701954235,13.5288,142.54,142.45,3.0]
[1641701956040,1.26840121,142.53,142.44,23.3925]
[1641701956242,25.22110121,142.53,142.44,23.3925]
[1641701956640,10.5325,142.49,142.44,23.3925]
[1641701956870,10.5325,142.49,142.43,72.884]
[1641701960842,10.5325,142.49,142.42,23.899]
[1641701961043,11.80090121,142.49,142.4,26.72936146]
[1641701961242,11.80090121,142.49,142.4,1.98186146]
[1641701961845,10.5351,142.46,142.4,1.98186146]
[1641701962046,10.5351,142.46,142.39,23.7826]
[1641701966050,10.5351,142.46,142.4,3.0]
[1641701966452,107.5686,142.51,142.4,30.74144237]
[1641701966752,22.8723,142.5,142.4,27.74144237]
[1641701967354,22.8723,142.5,142.41,3.0]
[1641701967956,22.8723,142.5,142.41,24.7158]
[1641701970359,22.8723,142.5,142.43,31.96826152]
[1641701970560,82.9876,142.51,142.43,31.96826152]
[1641701970758,10.5314,142.51,142.43,31.96826152]
[1641701970961,1.79992489,142.52,142.43,31.96826152]
[1641701971161,14.66079662,142.53,142.44,23.6385]
[1641701971360,10.5306,142.52,142.44,23.6385]
[1641701972690,1.79992489,142.54,142.46,31.11805891]
[1641701972888,1.79992489,142.54,142.46,47.93205891]
[1641701973089,1.79992489,142.56,142.47,3.0]
[1641701973290,1.79992489,142.56,142.47,98.3635]
[1641701973689,1.79992489,142.56,142.5,10.5253]
[1641701974089,1.79992489,142.56,142.5,37.76345159]
[1641701974690,35.33752489,142.58,142.5,37.76345159]
[1641701975791,35.33752489,142.58,142.5,27.23815159]
[1641701977395,1.79992489,142.58,142.5,37.76385159]
[1641701977994,12.32492489,142.59,142.5,37.76385159]
[1641701978394,12.32492489,142.59,142.5,27.23815159]
[1641701978595,12.32492489,142.59,142.5,37.76365159]
[1641701979295,12.32492489,142.59,142.5,27.23815159]
[1641701980598,1.79992489,142.58,142.5,27.23815159]
[1641701980999,10.5266,142.57,142.5,27.23815159]
[1641701985100,10.5266,142.57,142.49,24.5556]
[1641701985499,11.79500121,142.57,142.47,72.5089]
[1641701985697,36.50080121,142.57,142.45,10.12]
[1641701986597,1.79992489,142.56,142.45,10.12]
[1641701986798,10.5312,142.51,142.45,10.12]
[1641701991705,10.5312,142.51,142.44,75.1503]
[1641701997308,10.53,142.52,142.44,85.6803]
[1641701997707,10.53,142.52,142.44,75.1503]
[1641702002738,12.32992489,142.52,142.44,75.1503]
[1641702003340,3.0,142.51,142.44,75.1503]
[1641702003639,10.5322,142.49,142.44,75.1503]
[1641702003839,10.5322,142.49,142.43,24.5393]
[1641702004037,10.5322,142.49,142.39,22.674]
[1641702004038,16.1982,142.49,142.39,22.674]
[1641702004237,17.46660121,142.49,142.39,22.674]
[1641702004838,40.37820121,142.49,142.39,22.674]
[1641702006143,95.37050908,142.49,142.39,22.674]
[1641702006341,97.17043397,142.49,142.39,22.674]
[1641702007042,3.0,142.48,142.39,22.674]
[1641702007243,10.5359,142.44,142.38,22.7227]
[1641702007541,10.5359,142.44,142.36,20.6556]
[1641702007742,10.5359,142.44,142.36,10.12]
[1641702008842,10.5359,142.44,142.36,20.656]
[1641702012247,59.6893,142.46,142.36,20.656]
[1641702012248,10.5344,142.45,142.36,20.656]
[1641702012448,10.5344,142.45,142.38,10.5344]
[1641702014852,10.5337,142.46,142.38,10.5344]
[1641702015053,38.70421907,142.5,142.39,10.12]
[1641702015253,14.66481907,142.5,142.41,22.57459912]
[1641702015454,1.79992489,142.51,142.41,22.57459912]
[1641702015654,1.79992489,142.52,142.41,22.57459912]
[1641702016255,26.59992489,142.52,142.42,22.9216]
[1641702016458,1.79992489,142.51,142.42,22.9216]
[1641702016883,1.79992489,142.51,142.45,10.5294]
[1641702017484,35.3291,142.52,142.45,10.5294]
[1641702017784,10.5291,142.52,142.45,10.5294]
[1641702018988,10.5284,142.53,142.45,10.5294]
[1641702020887,12.32772489,142.54,142.46,0.51]
[1641702021188,1.79992489,142.54,142.5,34.37749782]
[1641702021387,1.79992489,142.55,142.5,34.37749782]
[1641702021989,1.79992489,142.55,142.51,3.0]
[1641702022186,1.79992489,142.55,142.51,13.5247]
[1641702022387,36.61042489,142.58,142.51,13.5247]
[1641702022590,36.61042489,142.58,142.51,3.0]
[1641702022888,37.87376895,142.58,142.48,24.849]
[1641702024191,1.79992489,142.56,142.48,24.849]
[1641702024390,10.5273,142.55,142.48,24.849]
[1641702025791,10.5264,142.56,142.48,24.849]
[1641702028894,12.32632489,142.56,142.48,34.969]
[1641702031799,36.36542489,142.56,142.48,34.969]
[1641702032498,36.36542489,142.56,142.45,10.12]
[1641702032499,37.62876895,142.56,142.45,10.12]
[1641702033099,1.79992489,142.54,142.45,10.12]
[1641702033299,10.5306,142.51,142.45,10.12]
[1641702033599,22.521,142.53,142.45,10.12]
[1641702034402,10.5307,142.5,142.45,10.12]
[1641702036203,1.79992489,142.52,142.45,10.12]
[1641702036802,1.79992489,142.52,142.46,3.0]
[1641702037005,81.42022489,142.55,142.46,13.12]
[1641702037302,81.42022489,142.55,142.47,10.5275]
[1641702037703,10.5282,142.54,142.47,10.5275]
[1641702038305,10.5282,142.54,142.46,10.12]
[1641702038507,10.5282,142.54,142.46,20.6484]
[1641702038906,12.32812489,142.54,142.46,20.6484]
[1641702039804,12.32812489,142.54,142.46,10.12]
[1641702041308,1.79992489,142.53,142.46,10.12]
[1641702041507,10.5299,142.51,142.46,10.12]
[1641702042406,1.79992489,142.53,142.46,10.12]
[1641702043008,1.79992489,142.53,142.48,28.08802974]
[1641702043236,1.79992489,142.52,142.48,45.34302974]
[1641702043437,1.79992489,142.52,142.5,10.5251]
[1641702043636,3.97100777,142.55,142.5,20.6451]
[1641702043840,1.9870704,142.55,142.5,20.6451]
[1641702044642,3.97100777,142.58,142.5,20.6451]
[1641702044839,28.73010777,142.6,142.5,20.6451]
[1641702045038,28.73010777,142.6,142.56,10.5209]
[1641702045238,3.97100777,142.6,142.56,10.5209]
[1641702046539,3.97100777,142.61,142.56,10.5209]
[1641702046942,3.97100777,142.61,142.55,10.5217]
[1641702047943,3.97100777,142.61,142.56,10.38]
[1641702048143,3.97100777,142.61,142.56,18.558]
[1641702049143,14.49150777,142.64,142.57,10.5199]
[1641702049344,3.97100777,142.64,142.57,10.12]
[1641702050950,3.97100777,142.64,142.58,3.0]
[1641702051154,3.97100777,142.64,142.57,10.12]
[1641702051349,3.97100777,142.65,142.58,3.0]
[1641702051949,14.49050777,142.65,142.58,13.5196]
[1641702052452,3.97100777,142.65,142.58,13.5196]
[1641702052749,3.97100777,142.65,142.59,10.12]
[1641702052949,3.97100777,142.66,142.61,10.517]
[1641702053153,3.97100777,142.66,142.61,27.085]
[1641702053951,3.97100777,142.68,142.64,10.5151]
[1641702055154,7.9314422,142.69,142.64,10.5151]
[1641702055355,7.9314422,142.69,142.65,10.5139]
[1641702055554,7.9314422,142.69,142.64,7.985]
[1641702055753,9.93733209,142.71,142.64,21.365]
[1641702055956,9.93733209,142.71,142.64,18.365]
[1641702056354,9.93733209,142.71,142.66,23.56591445]
[1641702056655,9.93733209,142.71,142.67,3.0]
[1641702056853,5.96632432,142.71,142.66,33.68591445]
[1641702057056,3.97100777,142.75,142.66,33.68591445]
[1641702057456,10.5137,142.74,142.66,10.12]
[1641702057853,14.48470777,142.74,142.66,10.12]
[1641702058758,10.5137,142.74,142.66,10.12]
[1641702059456,14.48470777,142.74,142.66,10.12]
[1641702060659,10.5137,142.74,142.66,10.12]
[1641702061262,10.5137,142.74,142.62,10.12]
[1641702061461,34.8731,142.73,142.62,10.12]
[1641702061962,42.78427368,142.73,142.63,24.35896408]
[1641702062162,42.78427368,142.73,142.63,67.67366408]
[1641702062564,34.8731,142.73,142.63,67.67366408]
[1641702062962,34.8731,142.73,142.63,57.15786408]
[1641702063163,34.8731,142.73,142.64,10.5146]
[1641702063362,34.8731,142.73,142.64,3.0]
[1641702064364,34.8731,142.73,142.65,10.5139]
[1641702064768,34.8731,142.73,142.64,3.0]
[1641702064964,24.3556,142.73,142.64,3.0]
[1641702065566,24.3556,142.73,142.65,10.12]
[1641702065766,24.3556,142.73,142.66,10.5136]
[1641702066767,24.3556,142.73,142.67,10.5126]
[1641702067267,24.3556,142.73,142.65,10.12]
[1641702067467,24.3556,142.73,142.66,3.0]
[1641702067671,3.97100777,142.75,142.66,3.0]
[1641702067867,75.4008,142.76,142.7,10.5106]
[1641702068066,27.56870777,142.77,142.69,40.00989806]
[1641702068266,3.97100777,142.77,142.69,40.00989806]
[1641702068468,23.7275,142.78,142.69,40.00989806]
[1641702068667,23.7275,142.78,142.7,3.0]
[1641702069393,23.7275,142.78,142.71,10.5097]
[1641702069797,23.7275,142.78,142.7,3.0]
[1641702070696,23.7275,142.78,142.69,113.05349806]
[1641702071798,34.2376,142.78,142.7,10.5101]
[1641702074001,14.48050777,142.79,142.71,20.6297]
[1641702074201,14.48050777,142.79,142.71,10.12]
[1641702074402,10.5095,142.79,142.71,10.12]
[1641702075002,10.5095,142.79,142.72,3.0]
[1641702075205,10.5095,142.79,142.72,10.12]
[1641702075807,14.48050777,142.79,142.72,10.12]
[1641702076302,3.97100777,142.79,142.72,10.12]
[1641702077002,3.97100777,142.79,142.75,10.5069]
[1641702077203,3.97100777,142.79,142.72,10.12]
[1641702077204,3.97100777,142.79,142.73,3.0]
[1641702077804,7.91778822,142.8,142.71,3.0]
[1641702078005,7.91778822,142.8,142.71,13.5097]
[1641702078404,18.42728822,142.8,142.71,3.0]
[1641702079103,3.97100777,142.79,142.73,10.5083]
[1641702079503,3.97100777,142.79,142.71,3.0]
[1641702079703,7.91778822,142.8,142.71,3.0]
[1641702080505,3.94678045,142.8,142.71,3.0]
[1641702080904,14.45448045,142.8,142.74,10.5077]
[1641702081306,18.42548822,142.8,142.74,10.5077]
[1641702081506,18.42548822,142.8,142.71,3.0]
[1641702082008,14.47870777,142.8,142.73,10.508]
[1641702083412,7.92812622,142.79,142.73,10.508]
[1641702083609,18.43662622,142.79,142.73,10.508]
[1641702083810,18.43662622,142.79,142.72,20.6292]
[1641702084113,14.47950777,142.79,142.72,10.12]
[1641702084610,14.47950777,142.79,142.71,3.0]
[1641702084810,3.95705991,142.78,142.71,13.5099]
[1641702085010,7.92806768,142.78,142.71,20.6299]
[1641702085210,18.43816768,142.78,142.71,20.6299]
[1641702085611,14.48110777,142.78,142.71,20.6299]
[1641702085810,10.5101,142.78,142.71,20.6299]
[1641702086312,3.97100777,142.79,142.71,10.12]
[1641702086511,3.97100777,142.78,142.71,10.12]
[1641702086711,3.97100777,142.78,142.72,3.0]
[1641702087212,3.97100777,142.78,142.72,13.12]
[1641702087511,7.92983077,142.8,142.75,23.18477867]
[1641702087912,7.92983077,142.8,142.76,13.38]
[1641702088211,3.97100777,142.81,142.76,13.38]
[1641702088412,3.97100777,142.81,142.79,10.5039]
[1641702088615,3.97100777,142.81,142.76,13.12]
[1641702089111,3.97100777,142.84,142.76,13.12]
[1641702089312,3.97100777,142.84,142.76,37.1426]
[1641702089914,3.97100777,142.83,142.77,10.5055]
[1641702090614,3.97100777,142.84,142.77,10.5055]
[1641702091323,14.47630777,142.84,142.77,10.5055]
[1641702091914,14.47630777,142.84,142.76,44.6488]
[1641702092814,7.9244973,142.83,142.76,44.6488]
[1641702093015,10.5066,142.82,142.76,34.1426]
[1641702093212,10.5066,142.82,142.76,10.12]
[1641702093514,14.47760777,142.82,142.76,10.12]
[1641702094115,10.5066,142.82,142.76,10.12]
[1641702094814,14.47760777,142.82,142.76,10.12]
[1641702098323,14.47760777,142.82,142.76,20.6264]
[1641702098820,14.47760777,142.82,142.76,10.12]
[1641702100824,14.47760777,142.82,142.76,20.6265]
[1641702102623,14.47760777,142.82,142.77,10.5058]
[1641702102825,3.96436119,142.81,142.77,10.5058]
[1641702103527,3.96436119,142.81,142.77,10.12]
[1641702103726,3.97100777,142.82,142.78,0.51]
[1641702103925,3.97100777,142.82,142.79,10.12]
[1641702104527,3.97100777,142.86,142.8,3.0]
[1641702104729,3.97100777,142.86,142.81,10.12]
[1641702105528,3.97100777,142.87,142.81,10.12]
[1641702106932,14.47390777,142.87,142.81,10.12]
[1641702107539,14.47390777,142.87,142.77,23.8842]
[1641702107735,14.47390777,142.87,142.75,98.66277867]
[1641702107937,31.8059335,142.86,142.75,98.66277867]
[1641702108136,10.508,142.85,142.75,98.66277867]
[1641702108942,3.97100777,142.83,142.75,98.66277867]
[1641702109144,10.5074,142.82,142.75,98.66277867]
[1641702109944,10.5074,142.82,142.75,109.16977867]
[1641702111462,10.5074,142.82,142.75,75.478]
[1641702111864,10.5074,142.82,142.72,34.4855]
[1641702112066,33.3154,142.82,142.72,34.4855]
[1641702112466,33.3154,142.82,142.73,27.35659696]
[1641702112668,3.97100777,142.83,142.74,10.12]
[1641702112867,5.96632432,142.85,142.82,25.60320123]
[1641702113270,5.96632432,142.85,142.84,28.39215675]
[1641702113468,9.82556288,142.91,142.84,28.39215675]
[1641702113676,3.96110946,142.9,142.84,31.39215675]
[1641702113868,3.96110946,142.9,142.89,10.4965]
[1641702115072,6.06431425,142.9,142.89,1e-08]
[1641702115686,6.06431425,142.9,142.89,10.49650001]
[1641702115876,48.6034,142.95,142.89,10.49650001]
[1641702116076,25.12143467,142.96,142.89,10.49650001]
[1641702116375,25.12143467,142.96,142.89,1e-08]
[1641702116778,14.62443467,142.96,142.89,1e-08]
[1641702117178,217.02258747,143.01,142.9,35.52060934]
[1641702117378,14.6110619,142.99,142.9,35.52060934]
[1641702117577,14.6110619,142.99,142.91,3.0]
[1641702118184,14.6110619,142.99,142.89,1e-08]
[1641702118386,1.27076945,142.99,142.89,1e-08]
[1641702118583,14.61236475,142.98,142.89,3.00000001]
[1641702118985,14.61236475,142.98,142.89,31.89804439]
[1641702119589,14.61236475,142.98,142.89,66.87734439]
[1641702119790,14.61236475,142.98,142.9,10.12]
[1641702120589,15.8831342,142.98,142.89,1e-08]
[1641702120795,26.3783342,142.98,142.89,10.49600001]
[1641702121190,26.3783342,142.98,142.89,1e-08]
[1641702121793,14.44131349,142.97,142.89,1e-08]
[1641702122418,3.94451349,142.96,142.89,1e-08]
[1641702123219,25.11136475,142.98,142.89,1e-08]
[1641702123922,3.94356172,142.97,142.89,1e-08]
[1641702124522,3.0,142.96,142.89,1e-08]
[1641702124721,13.4967,142.96,142.89,10.49610001]
[1641702125322,13.4967,142.96,142.89,1e-08]
[1641702125622,10.4967,142.96,142.89,1e-08]
[1641702128025,3.94123659,142.95,142.89,1e-08]
[1641702128429,14.44193659,142.95,142.89,1e-08]
[1641702129227,18.38317318,142.95,142.89,1e-08]
[1641702130026,14.44193659,142.95,142.89,1e-08]
[1641702130626,3.94123659,142.95,142.89,1e-08]
[1641702130828,10.496,142.96,142.89,1e-08]
[1641702131029,10.496,142.96,142.9,10.496]
[1641702134836,10.496,142.96,142.89,10.12000001]
[1641702134837,27.99063659,142.98,142.91,10.12]
[1641702135236,27.99063659,142.98,142.93,29.65650009]
[1641702135436,3.94123659,142.98,142.93,29.65650009]
[1641702135836,14.61145295,142.99,142.97,10.4908]
[1641702136238,14.61145295,142.99,142.93,34.9693]
[1641702136440,3.81929875,142.97,142.93,34.9693]
[1641702136637,3.81929875,142.97,142.91,10.12]
[1641702137039,3.81929875,142.97,142.92,3.0]
[1641702137238,3.81929875,142.97,142.93,27.47389864]
[1641702137642,3.81929875,142.97,142.95,10.4914]
[1641702137839,3.81929875,142.97,142.93,27.47389864]
[1641702142278,3.94123659,142.98,142.93,37.59389864]
[1641702142479,3.94123659,142.98,142.94,0.26]
[1641702142678,3.94123659,142.98,142.95,10.12]
[1641702142878,0.17618574,143.02,142.95,10.12]
[1641702143081,0.17618574,143.02,143.0,10.4846]
[1641702143278,3.95285858,143.01,143.0,10.4846]
[1641702144280,0.17618574,143.02,143.0,10.4846]
[1641702144883,3.20838571,143.02,143.0,10.4846]
[1641702145083,6.24049999,143.02,143.0,10.4846]
[1641702145285,6.24049999,143.02,142.99,10.4876]
[1641702145681,6.24049999,143.02,142.96,36.2449]
[1641702145682,6.24049999,143.02,142.96,10.12]
[1641702146184,6.24049999,143.02,142.96,34.5796583]
[1641702148888,16.73189999,143.02,142.96,34.5796583]
[1641702149496,6.24049999,143.02,142.96,34.5796583]
[1641702149889,6.24049999,143.02,142.97,10.7487]
[1641702150190,6.24049999,143.02,142.98,10.12]
[1641702150390,0.17618574,143.02,142.98,10.12]
[1641702152119,10.66758574,143.02,142.98,10.12]
[1641702153423,0.17618574,143.02,142.98,10.12]
[1641702154822,10.66768574,143.02,142.98,10.12]
[1641702155022,0.17618574,143.02,142.98,10.12]
[1641702157323,10.66768574,143.02,142.98,10.12]
[1641702160626,0.17618574,143.02,142.98,10.12]
[1641702161527,0.17618574,143.02,142.94,79.5436]
[1641702161728,10.66738574,143.02,142.94,79.5436]
[1641702162129,10.66738574,143.02,142.95,10.12]
[1641702162329,10.66738574,143.02,142.95,35.88594526]
[1641702163231,14.44954681,143.01,142.95,10.12]
[1641702163630,3.95754681,143.0,142.95,10.12]
[1641702164232,3.95754681,143.0,142.95,34.23893511]
[1641702164436,1.98101045,142.96,142.95,34.23893511]
[1641702165038,1.98101045,142.96,142.95,44.72703511]
[1641702165534,1.98101045,142.98,142.95,44.98703511]
[1641702165734,1.98101045,142.98,142.95,44.72703511]
[1641702166235,3.95754681,143.01,142.95,34.23893511]
[1641702166437,3.95754681,143.01,142.96,0.26]
[1641702166637,3.95754681,143.01,142.96,10.38]
[1641702167537,3.95754681,143.01,142.98,10.4878]
[1641702167737,0.17618574,143.02,142.98,20.6078]
[1641702167939,0.17618574,143.02,142.98,10.12]
[1641702168541,10.66738574,143.02,142.98,10.12]
[1641702169839,0.17618574,143.02,142.98,10.12]
[1641702170040,3.96552734,143.01,142.98,10.12]
[1641702170337,6.06431425,143.0,142.98,10.12]
[1641702170536,3.96552734,143.01,142.98,10.12]
[1641702170736,0.17618574,143.02,142.98,10.12]
[1641702170938,10.4918,143.01,142.98,10.12]
[1641702171341,14.4604601,143.01,142.98,10.12]
[1641702171539,6.06431425,143.0,142.98,10.12]
[1641702173141,3.9686601,143.01,142.98,10.12]
[1641702173742,6.06431425,143.0,142.98,10.12]
[1641702175746,0.17618574,143.02,142.98,10.12]
[1641702179976,0.17618574,143.02,142.98,20.6086]
[1641702180376,0.17618574,143.02,142.98,10.12]
[1641702181278,10.66728574,143.02,142.98,10.12]
[1641702181478,10.66728574,143.02,142.96,23.8578]
[1641702181679,10.66728574,143.02,142.95,10.12]
[1641702182479,3.96691153,143.01,142.95,10.12]
[1641702183681,3.96691153,143.01,142.97,10.4891]
[1641702183881,3.96691153,143.01,142.95,10.12]
[1641702184683,3.96691153,143.01,142.97,10.4892]
[1641702184881,3.96691153,143.01,142.97,10.12]
[1641702185082,0.17618574,143.02,142.97,10.12]
[1641702185481,0.17618574,143.02,142.93,74.3885]
[1641702185482,0.17618574,143.02,142.93,10.12]
[1641702185884,10.4916,143.01,142.93,10.12]
[1641702186083,14.45917481,143.01,142.93,10.12]
[1641702186585,37.50777481,143.01,142.93,10.12]
[1641702187187,14.46327481,143.0,142.93,10.12]
[1641702187986,3.96757481,142.99,142.93,10.12]
[1641702188487,3.0,142.98,142.93,10.12]
[1641702188687,13.4958,142.98,142.93,10.12]
[1641702190292,13.4958,142.98,142.89,10.12000001]
[1641702190493,36.3429,142.98,142.89,10.12000001]
[1641702193293,3.9637383,142.97,142.89,10.12000001]
[1641702193695,14.4610383,142.97,142.89,10.12000001]
[1641702194797,10.4973,142.97,142.89,10.12000001]
[1641702197901,0.17618574,143.02,142.89,10.12000001]
[1641702198099,0.17618574,143.02,142.9,23.1739]
[1641702198299,0.17618574,143.02,142.91,10.12]
[1641702198501,0.17618574,143.02,142.93,26.5975163]
[1641702198700,10.4929,143.01,142.94,34.6782]
[1641702200301,10.4929,143.01,142.94,10.12]
[1641702200903,3.95997205,143.0,142.94,10.12]
[1641702202103,0.17618574,143.02,142.94,10.12]
[1641702202104,10.4919,143.01,142.94,10.12]
[1641702207114,0.17618574,143.02,142.94,10.12]
[1641702207313,0.17618574,143.02,142.95,23.3985]
[1641702207514,0.17618574,143.02,142.95,23.1385]
[1641702207814,0.17618574,143.02,142.96,10.4902]
[1641702208116,0.17618574,143.02,142.95,23.1385]
[1641702209815,0.17618574,143.02,142.96,10.4905]
[1641702211419,10.66698574,143.02,142.95,33.6298]
[1641702211818,10.66698574,143.02,142.95,23.1385]
[1641702213150,10.66698574,143.02,142.95,33.2585]
[1641702214150,10.66698574,143.02,142.95,10.12]
[1641702214351,10.66698574,143.02,142.91,89.9667]
[1641702214555,22.919,143.01,142.91,89.9667]
[1641702214750,10.4959,143.0,142.91,89.9667]
[1641702218353,10.4959,143.0,142.92,23.9894307]
[1641702218554,10.4959,143.0,142.92,47.3797307]
[1641702218753,10.4959,143.0,142.93,10.4931]
[1641702218956,10.4959,143.0,142.93,10.12]
[1641702219153,0.17618574,143.02,142.94,0.26]
[1641702219154,10.4915,143.01,142.94,0.26]
[1641702219453,10.4915,143.01,142.95,10.12]
[1641702220059,10.4915,143.01,142.96,10.4912]
[1641702220360,10.4915,143.01,142.95,10.12]
[1641702220957,0.17618574,143.02,142.95,10.12]
[1641702221158,0.17618574,143.02,142.97,10.4906]
[1641702221658,0.17618574,143.02,142.95,10.12]
[1641702221859,0.17618574,143.02,142.92,10.12]
[1641702222057,10.66678574,143.02,142.92,10.12]
[1641702222258,11.95656868,143.02,142.92,10.12]
[1641702222759,3.96258252,143.01,142.92,10.12]
[1641702223459,10.4968,143.0,142.92,10.12]
[1641702225662,6.96380126,142.99,142.92,10.12]
[1641702225860,17.45960126,142.99,142.92,10.12]
[1641702226360,13.4958,142.99,142.92,10.12]
[1641702228462,13.4958,142.99,142.9,22.7333]
[1641702228664,4.28721434,142.99,142.89,1e-08]
[1641702228863,38.51237184,142.98,142.89,1e-08]
[1641702229266,3.0,142.97,142.89,1e-08]
[1641702229665,6.96567184,142.97,142.89,1e-08]
[1641702229968,14.46607184,142.97,142.89,1e-08]
[1641702230695,14.46607184,142.97,142.9,10.4956]
[1641702230866,10.5004,142.97,142.89,1e-08]
[1641702231666,11.78761434,142.97,142.89,1e-08]
[1641702232367,3.96011926,142.96,142.89,1e-08]
[1641702232667,14.45911926,142.96,142.89,1e-08]
[1641702232966,38.04461926,142.96,142.89,1e-08]
[1641702233368,34.0845,142.96,142.89,1e-08]
[1641702236374,23.5855,142.96,142.89,1e-08]
[1641702237074,23.5855,142.96,142.9,10.4959]
[1641702237475,23.5855,142.96,142.89,1e-08]
[1641702237775,3.96009706,142.98,142.89,1e-08]
[1641702237974,3.96009706,142.98,142.89,3.26000001]